bitfinex/quotes_SOLUSD_20250722
["timestamp","ask_amount","ask_price","bid_price","bid_amount"]
[1753185868003,35.74,199.79,199.76,5.74585283]
[1753185868180,35.74,199.79,199.78,4.52043688]
[1753185868906,0.06,199.82,199.78,5.23043688]
[1753185869082,0.06,199.82,199.76,0.03]
[1753185869288,36.38,199.81,199.78,4.52043688]
[1753185869495,0.50052555,199.8,199.78,4.52043688]
[1753185869702,35.72,199.79,199.76,5.74592884]
[1753185869903,35.72,199.79,199.78,4.52043688]
[1753185870297,35.72,199.79,199.76,0.74]
[1753185870507,35.72,199.79,199.78,4.52043688]
[1753185871228,36.38,199.79,199.76,0.03]
[1753185871389,1.16052555,199.78,199.76,0.03]
[1753185871711,35.72,199.77,199.76,0.03]
[1753185871921,35.72,199.77,199.76,3.07315148]
[1753185872210,36.38,199.77,199.76,3.07315148]
[1753185874495,75.1,199.8,199.76,13.30952278]
[1753185874697,75.1,199.8,199.79,4.52043688]
[1753185874893,110.82,199.8,199.79,7.56358836]
[1753185876222,111.48,199.8,199.79,3.04315148]
[1753185876716,110.82,199.8,199.79,3.04315148]
[1753185877289,110.82,199.8,199.79,7.56358836]
[1753185878485,110.82,199.8,199.79,3.04315148]
[1753185878691,111.48,199.8,199.79,3.04315148]
[1753185879001,111.48,199.8,199.79,3.02703193]
[1753185879406,111.48,199.8,199.78,4.52043688]
[1753185879612,111.48,199.8,199.79,3.02842145]
[1753185881132,116.485005,199.8,199.79,3.02842145]
[1753185881496,75.76,199.8,199.79,3.02842145]
[1753185881716,110.82,199.8,199.79,3.0310846]
[1753185883436,0.06,199.81,199.79,8.26152148]
[1753185883605,35.78,199.81,199.8,17.57746386]
[1753185883913,32.02764928,199.81,199.8,15.25637926]
[1753185884218,0.06,199.82,199.8,15.25637926]
[1753185884219,35.78,199.82,199.8,15.25637926]
[1753185884389,35.78,199.82,199.81,4.52043688]
[1753185884592,35.78,199.82,199.81,5.23043688]
[1753185885713,0.06,199.82,199.81,33.17757536]
[1753185886092,35.72,199.84,199.82,16.78468397]
[1753185886293,0.06,199.85,199.84,44.31738397]
[1753185886525,0.06,199.85,199.84,48.83782085]
[1753185886724,0.06,199.85,199.84,49.54782085]
[1753185887315,0.06,199.85,199.84,50.04822117]
[1753185887692,0.06,199.85,199.84,55.05222437]
[1753185895842,0.06,199.9,199.84,72.08266925]
[1753185896023,0.06,199.9,199.89,16.78468397]
[1753185896224,0.06,199.9,199.89,26.32583288]
[1753185896457,0.06,199.9,199.89,27.03583288]
[1753185897145,0.06,199.93,199.92,42.78468397]
[1753185897443,0.06,199.97,199.92,83.48532093]
[1753185897822,0.06,199.97,199.96,26.0]
[1753185898133,0.06,199.97,199.96,47.80522087]
[1753185898444,0.06,199.97,199.96,48.51522087]
[1753185899950,0.06,199.97,199.96,32.21110022]
[1753185900124,0.06,199.97,199.96,36.7315371]
[1753185900727,0.06,199.97,199.96,53.51622107]
[1753185901750,0.06,199.97,199.96,89.17622107]
[1753185902045,0.01760692,199.99,199.97,16.78468397]
[1753185902250,0.01760692,199.99,199.97,5.23043688]
[1753185902432,0.01760692,199.99,199.97,7.51307557]
[1753185902633,0.01760692,199.99,199.97,8.22307557]
[1753185902951,0.01760692,199.99,199.97,7.51307557]
[1753185903150,0.01760692,199.99,199.97,8.22307557]
[1753185903854,0.76,199.98,199.97,7.51307557]
[1753185904061,0.06,199.98,199.97,12.51382568]
[1753185904360,0.06,199.98,199.97,30.00850965]
[1753185907546,0.06,199.98,199.97,25.00775954]
[1753185907739,0.06,199.98,199.97,7.51307557]
[1753185909525,0.06,199.98,199.97,13.22382568]
[1753185910153,0.06,199.98,199.97,13.72390069]
[1753185910962,0.06,199.98,199.97,13.70971187]
[1753185911138,0.1,200.01,200.0,42.78468397]
[1753185911345,0.1,200.01,200.0,56.82555773]
[1753185911542,0.1,200.01,200.0,60.51275819]
[1753185912535,0.1,200.01,200.0,2.97720046]
[1753185912737,0.1,200.01,200.0,7.49763734]
[1753185913238,5.79975001,200.01,200.0,2.97720046]
[1753185913569,5.79975001,200.01,199.97,0.03]
[1753185913570,43.59547556,200.01,199.98,4.52043688]
[1753185913737,43.59547556,200.01,199.97,0.03]
[1753185913738,40.73975001,200.01,199.97,0.03]
[1753185913936,40.73975001,200.01,200.0,4.52043688]
[1753185913937,35.74,200.01,200.0,4.52043688]
[1753185914144,0.1,200.01,200.0,9.04087376]
[1753185914460,0.1,200.01,200.0,12.72972084]
[1753185915051,0.1,200.01,200.0,12.01972084]
[1753185915547,0.1,200.01,200.0,7.49928396]
[1753185915749,0.1,200.01,200.0,12.72972084]
[1753185915937,0.1,200.01,200.0,17.72972084]
[1753185916344,0.1,200.01,200.0,34.51440481]
[1753185916564,0.1,200.01,200.0,35.01440481]
[1753185918263,0.1,200.01,200.0,13.22972084]
[1753185918454,0.1,200.01,200.0,30.01440481]
[1753185919351,0.1,200.01,200.0,35.01440481]
[1753185919872,0.06,200.06,200.0,35.01440481]
[1753185920175,0.06,200.06,200.05,4.52043688]
[1753185920471,0.06,200.06,200.05,7.49775311]
[1753185920685,0.06,200.06,200.05,8.20775311]
[1753185921259,0.06,200.06,200.05,13.20650342]
[1753185921753,0.06,200.06,200.05,8.20775311]
[1753185922259,0.06,200.06,200.05,29.96118739]
[1753185922460,0.66,200.16,200.06,16.78468397]
[1753185922664,0.66,200.16,200.15,4.52043688]
[1753185922849,0.66,200.16,200.1,0.68]
[1753185923050,0.66,200.16,200.15,4.52043688]
[1753185923251,1.73361345,200.18,200.15,4.52043688]
[1753185923453,1.73361345,200.18,200.16,2.97485554]
[1753185923668,2.39361345,200.18,200.17,4.52043688]
[1753185923982,6.72913606,200.18,200.16,4.52043688]
[1753185924357,6.72913606,200.18,200.17,4.52043688]
[1753185925093,7.38913606,200.18,200.17,4.52043688]
[1753185925259,1.73361345,200.18,200.17,4.52043688]
[1753185925575,1.73361345,200.18,200.17,7.49709412]
[1753185925984,1.73361345,200.18,200.17,5.20043688]
[1753185926165,1.73361345,200.18,200.17,13.17267759]
[1753185926587,1.73361345,200.18,200.17,8.17692399]
[1753185927102,1.73361345,200.18,200.17,13.17267759]
[1753185927259,1.73361345,200.18,200.17,29.95736156]
[1753185929458,1.73361345,200.18,200.17,34.47779844]
[1753185929683,0.06,200.23,200.17,34.47779844]
[1753185929871,0.06,200.23,200.22,4.52043688]
[1753185930065,0.06,200.23,200.22,7.49692399]
[1753185930383,0.06,200.23,200.22,24.96160796]
[1753185930563,0.06,200.23,200.22,25.46105856]
[1753185931157,0.06,200.23,200.22,30.4555646]
[1753185931787,0.06,200.23,200.22,3.47593771]
[1753185931962,0.06,200.23,200.22,7.99637459]
[1753185932784,0.06,200.23,200.22,10.69439352]
[1753185933785,0.06,200.23,200.22,5.01988748]
[1753185934174,0.72,200.23,200.22,4.52043688]
[1753185934562,0.06,200.23,200.22,4.52043688]
[1753185935464,0.06,200.23,200.22,5.01988748]
[1753185936179,0.06,200.23,200.22,27.47907749]
[1753185936568,0.06,200.23,200.22,21.80457145]
[1753185937268,0.06,200.23,200.22,21.30512085]
[1753185938087,0.06,200.27,200.23,16.78468397]
[1753185938263,0.06,200.27,200.26,21.30512085]
[1753185938463,0.06,200.27,200.26,16.78468397]
[1753185938689,0.06,200.27,200.26,21.30512085]
[1753185939185,0.06,200.27,200.26,21.98512085]
[1753185939487,0.06,200.27,200.26,26.97862928]
[1753185939688,0.06,200.27,200.26,22.4581924]
[1753185939884,0.06,200.27,200.26,26.29862928]
[1753185940084,0.06,200.27,200.26,4.52043688]
[1753185941673,0.06,200.27,200.25,0.49937578]
[1753185941874,0.06,200.27,200.26,4.52043688]
[1753185942286,0.06,200.27,200.26,5.20043688]
[1753185942588,0.06,200.27,200.26,21.98512085]
[1753185942993,0.06,200.27,200.26,21.30512085]
[1753185943573,0.06,200.27,200.26,26.97862928]
[1753185946198,30.99079765,200.37,200.26,26.97862928]
[1753185946199,26.0,200.37,200.26,43.98283725]
[1753185946378,0.66,200.37,200.36,4.52043688]
[1753185946888,0.1,200.39,200.36,4.52043688]
[1753185947091,0.76,200.39,200.38,4.52043688]
[1753185947401,0.1,200.39,200.38,4.52043688]
[1753185947693,0.1,200.39,200.38,31.99512754]
[1753185947870,0.66,200.46,200.45,4.52043688]
[1753185948378,14.50984599,200.47,200.45,4.52043688]
[1753185948699,12.96844599,200.47,200.46,4.52043688]
[1753185949079,13.62844599,200.47,200.46,4.52043688]
[1753185949287,12.96844599,200.47,200.46,7.16354492]
[1753185949488,12.96844599,200.47,200.46,7.84354492]
[1753185949695,12.96844599,200.47,200.46,29.61675527]
[1753185950283,12.96844599,200.47,200.46,7.16354492]
[1753185950484,13.62844599,200.47,200.42,42.78468397]
[1753185950683,13.62844599,200.47,200.4,43.40354492]
[1753185950684,0.66,200.46,200.4,0.68]
[1753185950884,0.66,200.46,200.45,7.16354492]
[1753185951091,12.96844599,200.47,200.45,7.16354492]
[1753185951284,12.96844599,200.47,200.46,7.16354492]
[1753185951485,12.96844599,200.47,200.43,0.4989273]
[1753185951787,12.96844599,200.47,200.46,7.16354492]
[1753185951990,12.96844599,200.47,200.44,5.66899267]
[1753185952191,12.96844599,200.47,200.46,23.94822889]
[1753185952800,12.96844599,200.47,200.46,24.64822889]
[1753185953003,0.06,200.51,200.47,16.78468397]
[1753185953299,0.06,200.51,200.5,23.94822889]
[1753185953482,0.06,200.51,200.5,7.16354492]
[1753185953889,0.06,200.51,200.5,12.6498292]
[1753185954098,0.06,200.51,200.5,13.8498292]
[1753185955100,0.06,200.51,200.5,13.1498292]
[1753185955604,0.06,200.51,200.5,8.16229803]
[1753185955808,0.06,200.51,200.5,7.66229803]
[1753185956101,0.06,200.51,200.5,7.16354492]
[1753185956692,0.06,200.51,200.5,29.63576006]
[1753185956878,0.06,200.55,200.54,7.16354492]
[1753185957988,0.06,200.55,200.54,12.6487349]
[1753185958190,0.06,200.55,200.54,3.01562011]
[1753185958405,0.74,200.55,200.49,0.49877799]
[1753185958714,0.74,200.55,200.54,7.16354492]
[1753185959087,0.74,200.55,200.53,7.16354492]
[1753185959506,0.68,200.54,200.53,7.16354492]
[1753185960291,0.06,200.55,200.51,7.16354492]
[1753185960495,0.68,200.54,200.51,7.16354492]
[1753185960686,0.06,200.55,200.53,7.16354492]
[1753185961009,0.06,200.55,200.54,7.16354492]
[1753185961391,0.06,200.55,200.45,61.68]
[1753185961392,5.7262877,200.55,200.5,7.16354492]
[1753185961630,36.36,200.54,200.44,27.19890241]
[1753185961819,2.77652555,200.53,200.45,3.01817402]
[1753185962110,5.66703371,200.52,200.47,7.16354492]
[1753185962309,1.18052555,200.51,200.48,7.16354492]
[1753185962620,0.68,200.5,200.48,7.16354492]
[1753185963014,26.0,200.45,200.39,0.03]
[1753185963314,7.16354492,200.41,200.39,0.03]
[1753185963509,1.596,200.43,200.39,0.03]
[1753185963510,0.50052555,200.4,200.39,0.03]
[1753185963854,1.18052555,200.4,200.39,0.03]
[1753185964131,6.17054551,200.4,200.39,0.03]
[1753185964704,1.18052555,200.4,200.39,0.03]
[1753185964930,6.17054551,200.4,200.39,0.03]
[1753185965136,13.33409043,200.4,200.39,0.03]
[1753185965441,1.18052555,200.4,200.39,0.03]
[1753185965741,0.68,200.4,200.39,0.03]
[1753185966025,5.67001996,200.4,200.39,0.03]
[1753185966404,12.83356488,200.4,200.39,0.03]
[1753185966833,19.12066488,200.4,200.39,0.03]
[1753185967517,47.57711996,200.4,200.39,0.03]
[1753185968038,54.74066488,200.4,200.39,0.03]
[1753185969025,110.00039875,200.4,200.34,0.03]
[1753185969229,7.16354492,200.36,200.34,0.03]
[1753185969432,36.10052555,200.35,200.34,0.03]
[1753185969638,36.78052555,200.35,200.34,3.12259123]
[1753185970009,41.77179083,200.35,200.34,3.12259123]
[1753185970526,36.78052555,200.35,200.34,3.12259123]
[1753185970925,41.77179083,200.35,200.34,3.12259123]
[1753185971645,48.93533575,200.35,200.34,3.12259123]
[1753185972217,41.77179083,200.35,200.34,3.12259123]
[1753185972417,43.94407047,200.35,200.34,3.12259123]
[1753185972634,36.78052555,200.35,200.34,3.12259123]
[1753185973137,41.77179083,200.35,200.34,3.12259123]
[1753185973309,36.78052555,200.35,200.34,3.12259123]
[1753185974513,0.68,200.35,200.34,10.28613615]
[1753185974715,35.56,200.35,200.34,10.28613615]
[1753185975424,35.56,200.35,200.34,7.19354492]
[1753185975739,35.56,200.35,200.34,10.29086838]
[1753185975935,36.24,200.35,200.34,3.12732346]
[1753185976538,35.56,200.35,200.34,10.29086838]
[1753185977047,36.24,200.35,200.34,3.12732346]
[1753185978125,36.24,200.35,200.34,10.29086838]
[1753185978823,36.24,200.35,200.34,3.12732346]
[1753185979022,36.24,200.35,200.34,10.29086838]
[1753185979945,36.24,200.35,200.34,3.12732346]
[1753185980134,36.74052555,200.35,200.34,3.12732346]
[1753185980741,36.24,200.35,200.34,3.12732346]
[1753185981353,35.56,200.35,200.34,10.29086838]
[1753185982853,36.22,200.35,200.34,3.12732346]
[1753185983447,35.56,200.35,200.34,10.29086838]
[1753185983649,35.06,200.35,200.34,10.29086838]
[1753185984747,1.16052555,200.37,200.34,10.29086838]
[1753185985055,36.22,200.36,200.35,3.09732346]
[1753185985439,3.26151995,200.39,200.35,10.26086838]
[1753185985640,35.56,200.38,200.37,7.16354492]
[1753185985841,35.56,200.38,200.37,10.26086838]
[1753185987128,35.56,200.38,200.37,7.16354492]
[1753185987333,35.06,200.38,200.37,10.26857361]
[1753185987834,35.06,200.38,200.37,15.25934069]
[1753185988034,35.06,200.38,200.37,15.93934069]
[1753185988636,35.56,200.38,200.37,15.93934069]
[1753185990337,36.22,200.38,200.37,10.26826528]
[1753185990532,35.56,200.38,200.37,10.26826528]
[1753185990737,35.56,200.38,200.37,10.27008672]
[1753185991139,2.60044905,200.46,200.38,17.46681304]
[1753185991344,0.66,200.49,200.4,7.16354492]
[1753185991681,0.66,200.49,200.48,7.16354492]
[1753185991843,36.22,200.49,200.48,10.27008672]
[1753185992156,36.22,200.49,200.48,3.1065418]
[1753185992742,35.56,200.49,200.48,10.27008672]
[1753185994881,35.56,200.49,200.48,15.93811545]
[1753185995471,35.56,200.49,200.48,10.27008672]
[1753185995773,36.22,200.49,200.48,10.27008672]
[1753185995957,35.56,200.49,200.48,10.27008672]
[1753185997139,35.56,200.49,200.48,10.95008672]
[1753185997341,0.06,200.51,200.5,26.0]
[1753185997562,0.06,200.51,200.5,36.27008672]
[1753185997867,0.06,200.51,200.5,10.27008672]
[1753185998068,5.70728242,200.51,200.5,3.1065418]
[1753185998778,16.78468397,200.49,200.4,7.16354492]
[1753185998961,16.78468397,200.49,200.41,3.05601553]
[1753185998962,36.2,200.48,200.41,3.05601553]
[1753185999185,4.98877525,200.45,200.34,0.71]
[1753185999467,36.2,200.44,200.4,7.16354492]
[1753185999666,36.2,200.43,200.41,3.05987201]
[1753185999850,0.66,200.42,200.4,7.16354492]
[1753186000050,35.54,200.43,200.38,7.16354492]
[1753186000252,42.70354492,200.43,200.39,3.06135801]
[1753186000472,7.16354492,200.4,200.34,0.03]
[1753186000671,2.1614,200.42,200.34,0.03]
[1753186000672,42.70354492,200.39,200.35,3.06350791]
[1753186000894,42.70354492,200.39,200.34,0.03]
[1753186000895,0.66,200.38,200.36,3.06350791]
[1753186001199,4.99101617,200.36,200.34,0.03]
[1753186001369,1.5014,200.33,200.3,0.03]
[1753186001673,26.0,200.31,200.29,0.03]
[1753186001872,42.70354492,200.3,200.29,0.03]
[1753186002182,36.2,200.3,200.29,0.03]
[1753186002969,4.99072939,200.38,200.29,10.26807143]
[1753186003169,4.99101617,200.36,200.32,7.16354492]
[1753186003371,42.70354492,200.37,200.32,7.16354492]
[1753186003699,0.66,200.36,200.33,7.16354492]
[1753186004380,0.66,200.36,200.34,3.07434108]
[1753186004577,0.66,200.36,200.33,7.16354492]
[1753186004885,0.66,200.36,200.34,3.07592801]
[1753186005080,0.66,200.36,200.35,3.07592801]
[1753186005409,12.15456109,200.36,200.35,3.07592801]
[1753186005693,73.69456109,200.36,200.29,0.03]
[1753186005992,7.82354492,200.35,200.3,3.07572422]
[1753186006198,0.66,200.34,200.31,3.07572422]
[1753186006373,36.2,200.33,200.32,3.07572422]
[1753186006771,43.36354492,200.33,200.32,3.07617242]
[1753186006994,43.36354492,200.33,200.29,0.03]
[1753186007193,5.65201277,200.32,200.3,3.0775153]
[1753186007400,7.82354492,200.31,200.29,0.03]
[1753186007609,42.72354492,200.3,200.29,0.03]
[1753186007771,44.99174492,200.3,200.25,0.03]
[1753186007974,0.66,200.29,200.26,3.08019174]
[1753186008194,0.66,200.29,200.25,0.03]
[1753186008195,7.16354492,200.27,200.25,0.03]
[1753186008402,42.72354492,200.26,200.25,0.03]
[1753186008571,43.38354492,200.26,200.25,0.03]
[1753186009175,48.37705335,200.26,200.25,0.03]
[1753186010423,41.21350843,200.26,200.25,0.03]
[1753186010777,48.37705335,200.26,200.25,0.03]
[1753186011279,43.38354492,200.26,200.25,0.03]
[1753186011786,42.72354492,200.26,200.25,3.10349581]
[1753186012205,42.72354492,200.26,200.25,3.10213261]
[1753186012510,35.56,200.26,200.25,3.10214206]
[1753186013005,35.56,200.26,200.25,0.03]
[1753186013475,41.21350843,200.26,200.25,0.03]
[1753186013676,41.21350843,200.26,200.2,5.19354492]
[1753186013877,41.21350843,200.26,200.21,3.07128916]
[1753186014075,36.22,200.26,200.22,3.07128916]
[1753186014296,36.22,200.26,200.23,3.07128916]
[1753186014495,7.16354492,200.27,200.24,3.07128916]
[1753186014801,0.66,200.25,200.18,0.69]
[1753186015101,35.56,200.24,200.22,7.16354492]
[1753186015277,35.56,200.23,200.22,7.16354492]
[1753186015602,35.56,200.23,200.22,10.92178274]
[1753186015898,35.56,200.23,200.22,3.06823782]
[1753186016877,35.56,200.23,200.22,3.06696032]
[1753186017278,35.56,200.23,200.22,3.06617604]
[1753186021904,35.56,200.23,200.22,10.91972096]
[1753186022108,75.76,200.33,200.22,28.4004921]
[1753186022400,35.56,200.32,200.31,7.16354492]
[1753186022607,35.56,200.32,200.31,7.85354492]
[1753186022984,35.56,200.32,200.29,7.16354492]
[1753186023201,0.72,200.34,200.3,7.16354492]
[1753186023408,35.56,200.33,200.3,7.16354492]
[1753186023800,35.56,200.33,200.29,7.16354492]
[1753186024004,35.56,200.33,200.3,10.22140026]
[1753186024181,35.56,200.33,200.3,7.16354492]
[1753186024380,35.56,200.33,200.29,7.16354492]
[1753186024616,35.56,200.33,200.3,3.05784166]
[1753186024782,35.56,200.33,200.29,7.16354492]
[1753186024986,35.56,200.33,200.3,10.22155792]
[1753186025202,35.56,200.33,200.3,7.16354492]
[1753186025603,36.22,200.33,200.3,7.16354492]
[1753186026087,35.56,200.32,200.31,7.16354492]
[1753186026295,25.51487263,200.32,200.31,7.16354492]
[1753186026497,25.51487263,200.32,200.3,7.16354492]
[1753186027703,25.51487263,200.32,200.28,4.99281441]
[1753186027902,25.51487263,200.32,200.3,7.16354492]
[1753186029214,25.51487263,200.32,200.31,7.85354492]
[1753186029393,26.17487263,200.32,200.27,4.99303395]
[1753186029594,26.17487263,200.32,200.29,7.16354492]
[1753186029792,35.56,200.31,200.29,7.16354492]
[1753186030110,35.56,200.31,200.3,7.16354492]
[1753186030310,36.22,200.31,200.23,2.2393]
[1753186030529,7.16354492,200.29,200.24,3.02123862]
[1753186030717,35.56,200.28,200.24,7.16354492]
[1753186030913,35.56,200.28,200.26,7.16354492]
[1753186031232,35.56,200.28,200.27,7.16354492]
[1753186031523,35.56,200.28,200.27,12.84680402]
[1753186031741,35.56,200.28,200.27,7.85354492]
[1753186031910,36.22,200.28,200.26,7.16354492]
[1753186032111,36.22,200.28,200.25,7.16354492]
[1753186032545,35.56,200.28,200.26,7.16354492]
[1753186032839,35.56,200.28,200.27,7.16354492]
[1753186033022,35.56,200.28,200.26,7.16354492]
[1753186033920,35.56,200.28,200.27,7.16354492]
[1753186035316,35.56,200.28,200.27,7.02278894]
[1753186038234,35.56,200.28,200.27,10.05014111]
[1753186039438,35.56,200.28,200.27,15.04340021]
[1753186039613,35.56,200.28,200.27,15.73422884]
[1753186041647,0.06,200.34,200.27,29.79537659]
[1753186041811,35.54,200.33,200.32,7.16354492]
[1753186042016,35.54,200.33,200.32,10.19172572]
[1753186042821,36.22,200.33,200.32,3.0281808]
[1753186043047,41.21176359,200.33,200.32,3.0281808]
[1753186043337,35.54,200.33,200.32,3.0281808]
[1753186043545,35.54,200.33,200.32,10.19172572]
[1753186044546,35.54,200.33,200.32,3.0281808]
[1753186045026,35.6,200.33,200.32,3.0281808]
[1753186045636,36.28,200.33,200.32,3.0281808]
[1753186045942,40.76455054,200.33,200.32,3.0281808]
[1753186046514,36.28,200.33,200.32,3.0281808]
[1753186046721,41.27176359,200.33,200.32,3.0281808]
[1753186047242,36.28,200.33,200.32,3.0281808]
[1753186047444,45.75631413,200.33,200.32,3.0281808]
[1753186048420,41.27176359,200.33,200.32,3.0281808]
[1753186048721,45.75631413,200.33,200.32,3.0281808]
[1753186049122,41.27176359,200.33,200.32,3.0281808]
[1753186049340,45.75631413,200.33,200.32,3.0281808]
[1753186049538,64.0956981,200.33,200.32,3.0281808]
[1753186049740,26.0,200.3,200.22,4.51455054]
[1753186049946,40.70455054,200.29,200.23,7.53542599]
[1753186050124,40.70455054,200.29,200.24,3.05087545]
[1753186050322,5.16455054,200.28,200.25,3.05087545]
[1753186050523,26.68,200.27,200.26,3.05087545]
[1753186050853,31.16455054,200.27,200.26,3.05087545]
[1753186051051,26.0,200.27,200.26,3.05087545]
[1753186051220,61.54,200.27,200.26,3.05087545]
[1753186051829,71.69780964,200.27,200.26,3.05087545]
[1753186052219,66.5332591,200.27,200.26,3.05087545]
[1753186052525,71.69780964,200.27,200.26,3.05087545]
[1753186053239,91.18013249,200.27,200.26,3.05087545]
[1753186053422,103.66328024,200.27,200.26,3.05323847]
[1753186053620,26.0,200.23,200.22,0.03]
[1753186053820,68.72218942,200.23,200.22,3.08359202]
[1753186054056,69.40218942,200.23,200.22,3.08359202]
[1753186054747,62.22,200.23,200.22,3.08359202]
[1753186055139,69.40218942,200.23,200.22,3.08359202]
[1753186055326,74.39644602,200.23,200.22,3.08359202]
[1753186057633,91.18112999,200.23,200.22,3.08359202]
[1753186057826,91.88468397,200.22,200.2,0.03]
[1753186058030,59.50687339,200.21,200.2,0.03]
[1753186058230,60.18687339,200.21,200.2,0.03]
[1753186058527,24.64687339,200.21,200.2,0.03]
[1753186058734,60.18687339,200.21,200.2,0.03]
[1753186059065,53.00468397,200.21,200.2,0.03]
[1753186059266,60.18687339,200.21,200.2,0.03]
[1753186059633,65.18162889,200.21,200.2,0.03]
[1753186061166,1.5726,200.23,200.2,0.03]
[1753186061365,7.60146012,200.25,200.2,7.89218942]
[1753186061684,35.54,200.24,200.2,7.21218942]
[1753186061854,35.54,200.24,200.22,7.18218942]
[1753186062173,35.54,200.24,200.23,7.86218942]
[1753186062357,35.96,200.26,200.23,0.68]
[1753186062560,36.22,200.25,200.2,0.03]
[1753186062974,43.40218942,200.25,200.2,0.71]
[1753186063158,36.22,200.25,200.2,7.89218942]
[1753186063346,35.54,200.25,200.21,0.68]
[1753186063749,4.99400719,200.24,200.21,0.68]
[1753186063957,61.54,200.23,200.2,7.21218942]
[1753186064248,35.54,200.23,200.2,7.89218942]
[1753186064970,35.54,200.23,200.21,0.68]
[1753186065177,7.59678543,200.25,200.21,0.68]
[1753186065369,35.54,200.24,200.21,0.68]
[1753186065688,7.59678543,200.25,200.21,0.68]
[1753186065890,35.54,200.23,200.21,0.68]
[1753186066263,40.53429675,200.23,200.2,7.21218942]
[1753186066789,40.53429675,200.23,200.2,0.03]
[1753186066956,41.21429675,200.23,200.2,0.03]
[1753186069669,41.21429675,200.23,200.21,3.03556166]
[1753186069880,41.21429675,200.23,200.22,3.03556166]
[1753186070656,65.18117014,200.23,200.2,0.03]
[1753186070880,23.96687339,200.21,200.2,0.03]
[1753186071064,59.50687339,200.21,200.2,0.03]
[1753186071384,0.68,200.21,200.2,0.03]
[1753186071573,35.54,200.21,200.2,7.21218942]
[1753186071888,36.2,200.21,200.2,3.06382501]
[1753186072084,41.1947555,200.21,200.2,3.06382501]
[1753186072383,36.2,200.21,200.2,3.06382501]
[1753186072582,35.54,200.21,200.2,3.06382501]
[1753186072890,26.0,200.22,200.2,10.24601443]
[1753186073083,26.0,200.22,200.21,3.0345233]
[1753186073387,61.54,200.22,200.21,3.0345233]
[1753186073986,66.53450604,200.22,200.21,3.0345233]
[1753186074293,61.54,200.22,200.21,3.0345233]
[1753186074594,66.69024893,200.22,200.21,3.0345233]
[1753186074770,88.46943894,200.22,200.2,0.03]
[1753186074973,5.15024893,200.21,200.2,0.03]
[1753186075178,21.9349329,200.21,200.2,0.03]
[1753186075796,22.43943947,200.21,200.2,0.03]
[1753186076001,26.9296884,200.21,200.2,0.03]
[1753186076173,26.0,200.18,200.15,0.03]
[1753186076503,40.03024893,200.17,200.16,3.03800153]
[1753186076680,40.69024893,200.17,200.16,3.03800153]
[1753186077311,43.38942332,200.17,200.16,3.03800153]
[1753186077797,48.38517692,200.17,200.16,3.03800153]
[1753186078005,48.38517692,200.17,200.15,0.03]
[1753186078194,0.66,200.16,200.15,0.03]
[1753186078380,7.84942332,200.16,200.15,0.03]
[1753186078780,24.63410729,200.16,200.15,0.03]
[1753186079812,17.44468397,200.16,200.15,0.03]
[1753186079989,29.63011048,200.16,200.15,0.03]
[1753186080383,42.78468397,200.14,200.13,0.2]
[1753186080707,85.51410729,200.14,200.13,1e-08]
[1753186080912,42.78468397,200.12,200.11,1e-08]
[1753186081094,85.51410729,200.12,200.11,1e-08]
[1753186081490,86.17410729,200.12,200.11,1e-08]
[1753186081885,4.99925011,200.03,199.99,0.03]
[1753186082205,33.18942332,200.0,199.99,0.03]
[1753186082387,85.51410729,200.0,199.99,0.03]
[1753186082709,86.17410729,200.0,199.99,0.03]
[1753186083226,91.88468397,199.99,199.97,1e-08]
[1753186083384,59.51410729,199.98,199.97,1e-08]
[1753186083589,60.17410729,199.98,199.97,1e-08]
[1753186083796,16.78468397,199.94,199.93,0.03]
[1753186083998,64.51560774,199.94,199.93,0.03]